bitfinex-derivatives/quotes_ETHF0:USTF0_20250110
["timestamp","ask_amount","ask_price","bid_price","bid_amount"]
[1736531845869,3.2078,3315.4,3315.0,40.8]
[1736531845870,0.30167,3315.3,3315.0,40.8]
[1736531846071,3.2078,3315.4,3315.0,40.8]
[1736531846675,5.4608,3315.8,3315.0,40.8]
[1736531846884,2.253,3315.8,3315.1,0.70088668]
[1736531847181,3.2078,3316.4,3315.3,3.2078]
[1736531847380,3.2078,3316.4,3315.3,3.50947]
[1736531847585,3.2078,3316.4,3315.4,0.30165]
[1736531847586,0.30158,3316.3,3315.4,0.30165]
[1736531847878,3.2078,3316.4,3315.3,3.2078]
[1736531848087,3.2078,3316.8,3316.4,0.30157]
[1736531848295,0.30155,3316.7,3316.2,0.30159]
[1736531848581,3.2078,3316.8,3315.8,3.2078]
[1736531848779,0.30155,3316.7,3316.3,0.30158]
[1736531848974,0.30157,3316.5,3316.0,0.3016]
[1736531849279,0.435,3316.9,3315.8,3.2078]
[1736531849280,1.18885,3316.9,3315.8,3.2078]
[1736531849482,3.2078,3316.7,3315.4,3.2078]
[1736531849776,1.18885,3316.9,3315.9,0.30161]
[1736531849777,0.30159,3316.3,3315.9,0.30161]
[1736531849981,3.2078,3316.6,3315.4,3.2078]
[1736531849982,0.3016,3316.2,3315.8,0.30162]
[1736531850177,0.3016,3316.2,3315.4,3.2078]
[1736531850178,3.2078,3316.2,3315.4,3.2078]
[1736531850480,5.60408212,3315.7,3313.6,3.2078]
[1736531850687,5.60408212,3315.7,3313.7,1.32422446]
[1736531850688,3.2078,3314.0,3313.7,1.32422446]
[1736531850978,3.2078,3314.0,3313.2,0.75467]
[1736531851182,3.50954,3314.6,3314.3,0.30176]
[1736531851373,3.2078,3314.6,3313.8,40.8]
[1736531851579,3.2078,3314.6,3314.5,0.30174]
[1736531851775,3.2078,3314.6,3313.8,3.2078]
[1736531851776,0.30175,3314.5,3313.8,3.2078]
[1736531851980,3.2078,3314.6,3314.5,0.30174]
[1736531852287,3.2078,3314.6,3314.5,40.8]
[1736531852479,8.2078,3314.6,3312.2,3.2078]
[1736531852682,3.2078,3313.0,3312.3,1.0226352]
[1736531852879,3.2078,3312.6,3312.4,40.8]
[1736531853187,3.2078,3312.6,3312.4,41.10193]
[1736531853386,3.2078,3312.6,3312.4,40.8]
[1736531853584,3.50972,3312.6,3312.4,41.10193]
[1736531853779,0.30193,3312.5,3312.4,40.8]
[1736531854186,0.30197,3312.0,3311.9,0.62643478]
[1736531854486,3.20787,3312.0,3311.9,0.62643478]
[1736531854683,3.50977,3312.0,3311.9,0.62643478]
[1736531854879,3.2078,3312.0,3311.9,0.62643478]
[1736531855079,7.85770212,3313.0,3311.9,0.62643478]
[1736531855080,3.50972,3312.6,3311.9,0.62643478]
[1736531855288,3.2078,3312.6,3311.9,0.62643478]
[1736531855486,3.2078,3312.6,3312.0,41.10197]
[1736531855684,3.2078,3312.6,3311.9,0.62643478]
[1736531855883,0.30197,3312.0,3311.9,0.62643478]
[1736531856085,3.2078,3312.1,3311.9,0.62643478]
[1736531856490,3.2078,3312.1,3312.0,0.30197]
[1736531856795,3.2078,3312.5,3312.0,40.8]
[1736531856990,3.2078,3312.9,3312.0,40.8]
[1736531857187,3.50964,3313.5,3312.9,0.30189]
[1736531857388,0.30181,3313.8,3313.2,0.30186]
[1736531857596,3.2078,3313.9,3312.9,3.2078]
[1736531857794,3.2078,3313.9,3313.6,0.30182]
[1736531857985,3.2078,3313.9,3312.9,3.2078]
[1736531858288,3.2078,3313.5,3312.8,3.2078]
[1736531858595,3.50964,3313.5,3313.0,0.30187]
[1736531858885,3.2078,3313.5,3312.8,3.2078]
[1736531859090,3.2078,3313.9,3313.2,3.2078]
[1736531859291,3.2078,3314.3,3313.2,3.2078]
[1736531859486,8.05778212,3314.8,3313.7,3.2078]
[1736531859688,8.05778212,3314.8,3312.3,2.254]
[1736531859689,3.2078,3315.2,3314.4,3.2078]
[1736531859885,3.2078,3315.2,3315.1,0.30169]
[1736531860087,3.2078,3315.2,3314.5,0.75437]
[1736531860088,5.30388212,3316.0,3315.0,3.2078]
[1736531860286,3.2078,3316.1,3313.6,1.50912]
[1736531860287,3.5094,3316.1,3315.8,0.30163]
[1736531860486,0.30159,3316.2,3315.8,0.30163]
[1736531860687,3.2078,3316.5,3315.8,3.2078]
[1736531860896,0.30158,3316.3,3315.8,0.30162]
[1736531861101,3.2078,3316.5,3316.1,0.30159]
[1736531861396,3.2078,3316.5,3316.2,0.30158]
[1736531861593,2.254,3316.9,3315.7,3.2078]
[1736531861594,0.30154,3316.8,3315.7,3.2078]
[1736531861901,3.6721,3317.6,3316.3,3.2078]
[1736531862093,3.2078,3317.2,3316.4,0.30157]
[1736531862283,3.6721,3317.6,3316.3,3.2078]
[1736531862487,0.30151,3317.1,3316.5,0.30156]
[1736531862696,0.30151,3317.1,3316.4,0.30157]
[1736531862894,0.30152,3317.0,3316.4,40.8]
[1736531863191,3.6721,3317.6,3316.4,40.8]
[1736531863689,0.30149,3317.3,3316.7,3.2078]
[1736531863887,0.30149,3317.3,3316.7,3.50934]
[1736531864084,3.2078,3317.6,3316.7,3.2078]
[1736531864286,3.2078,3317.6,3317.1,3.2078]
[1736531864495,3.2078,3317.6,3317.1,3.50931]
[1736531864687,3.2078,3317.6,3316.4,44.0078]
[1736531864892,3.2078,3317.6,3316.7,0.30154]
[1736531865195,3.2078,3317.6,3316.4,44.0078]
[1736531865393,3.2078,3317.6,3317.1,0.30151]
[1736531865897,3.50927,3317.6,3316.9,0.30152]
[1736531866091,3.2078,3317.6,3316.8,3.2078]
[1736531866298,3.50926,3317.6,3317.0,0.30151]
[1736531866800,3.5093,3317.2,3316.6,0.30155]
[1736531867100,3.2078,3317.2,3316.5,0.30156]
[1736531867295,3.2078,3317.2,3316.4,3.2078]
[1736531867799,0.30152,3317.0,3316.4,3.50937]
[1736531868194,3.2078,3317.2,3316.4,3.2078]
[1736531868900,0.30151,3317.1,3316.5,0.30156]
[1736531869096,3.2078,3317.2,3316.4,3.2078]
[1736531869302,3.2078,3317.2,3316.5,0.30156]
[1736531869605,3.2078,3317.2,3316.7,0.30154]
[1736531869801,3.2078,3317.2,3316.4,3.2078]
[1736531869997,3.2078,3317.2,3316.8,0.30153]
[1736531870298,3.2078,3317.2,3316.4,3.2078]
[1736531870503,3.2078,3317.6,3316.8,3.2078]
[1736531870800,0.00237714,3318.0,3317.3,0.30149]
[1736531870801,0.30380714,3318.0,3317.3,0.30149]
[1736531870995,0.00237714,3318.0,3317.3,3.2078]
[1736531871294,0.00237714,3318.0,3316.9,0.75382]
[1736531871295,0.30146,3317.7,3317.1,0.3015]
[1736531871500,0.30145,3317.8,3317.3,0.30149]
[1736531871699,0.30147,3317.6,3316.9,3.2078]
[1736531871906,3.2078,3317.6,3316.3,3.2078]
[1736531872101,3.2078,3317.6,3316.7,3.2078]
[1736531872600,3.2078,3317.1,3316.3,3.2078]
[1736531872809,0.30156,3316.6,3316.3,3.2078]
[1736531873302,3.2078,3316.7,3315.9,0.30161]
[1736531873499,3.2078,3316.7,3315.4,0.30166]
[1736531873500,3.2078,3316.3,3315.4,0.30166]
[1736531873693,0.30159,3316.2,3315.8,0.30163]
[1736531873893,3.2078,3316.3,3315.5,3.2078]
[1736531874104,3.2078,3316.8,3316.0,3.2078]
[1736531874310,3.2078,3317.9,3316.4,3.2078]
[1736531874600,3.2078,3317.9,3316.1,0.75401]
[1736531874601,3.2078,3317.9,3317.7,0.30145]
[1736531874901,3.2078,3317.9,3317.2,3.2078]
[1736531875098,0.00237714,3318.0,3317.6,3.2078]
[1736531875305,0.00237714,3318.0,3317.9,0.30144]
[1736531876005,0.00237714,3318.0,3317.9,41.10144]
[1736531877697,0.30136,3318.8,3318.4,0.30138]
[1736531878004,0.30136,3318.8,3317.9,40.8]
[1736531878005,0.3014,3318.4,3318.2,3.2078]
[1736531878209,1.94973714,3318.9,3318.2,8.2078]
[1736531878509,1.75323714,3318.9,3318.8,0.30135]
[1736531879105,1.75323714,3318.9,3318.8,41.10135]
[1736531879410,2.84999595,3319.6,3318.8,45.8]
[1736531879703,2.84999595,3319.6,3319.5,3.50909]
[1736531880302,2.84999595,3319.6,3319.5,49.30909]
[1736531880599,3.2078,3322.6,3319.9,3.2078]
[1736531880799,3.2078,3322.6,3321.8,3.2078]
[1736531881102,0.30108,3321.9,3321.3,0.30113]
[1736531881294,0.30108,3321.9,3320.4,0.75302]
[1736531881295,3.2078,3322.6,3321.1,3.2078]
[1736531881503,0.4485,3322.9,3322.0,3.2078]
[1736531881706,0.24167228,3323.0,3322.9,0.30098]
[1736531881907,3.2078,3323.8,3322.3,3.2078]
[1736531882106,3.50877,3323.1,3322.4,0.30102]
[1736531882307,3.2078,3323.1,3322.4,0.30103]
[1736531882505,4.84998212,3324.0,3323.0,40.8]
[1736531882814,4.84998212,3324.0,3323.0,41.10097]
[1736531882815,3.2078,3323.1,3323.0,41.10097]
[1736531883010,3.2078,3324.0,3323.4,0.499]
[1736531883212,3.2078,3324.9,3323.4,0.499]
[1736531883410,3.2078,3324.3,3323.3,0.30095]
[1736531883605,3.2078,3323.9,3323.0,40.8]
[1736531883808,0.30095,3323.3,3323.0,40.8]
[1736531884008,0.30095,3323.3,3322.9,3.2078]
[1736531884211,0.30099,3322.8,3321.9,3.50887]
[1736531884407,3.2078,3322.3,3321.2,3.2078]
[1736531884618,3.2078,3321.9,3321.2,3.2078]
[1736531884911,3.2078,3321.5,3319.7,3.2078]
[1736531885112,3.2078,3320.8,3319.7,3.2078]
[1736531885505,3.2078,3320.4,3320.1,0.30123]
[1736531885704,0.30122,3320.3,3319.2,3.2078]
[1736531886008,3.2078,3320.0,3319.1,3.2078]
[1736531886208,3.2078,3320.6,3319.5,3.2078]
[1736531886705,3.2078,3320.2,3319.5,3.2078]
[1736531886905,3.2078,3320.2,3319.6,0.30128]
[1736531887112,0.75282,3321.4,3319.3,0.3013]
[1736531887113,3.2078,3319.8,3319.3,0.3013]
[1736531887303,3.2078,3319.4,3318.9,41.10134]
[1736531887503,3.2078,3319.4,3318.9,40.8]
[1736531887707,15.04699,3323.5,3317.8,0.68236983]
[1736531887708,0.30138,3318.6,3317.8,0.68236983]
[1736531887913,0.75322,3319.6,3317.9,0.30144]
[1736531887914,3.2078,3318.3,3317.9,0.30144]
[1736531888210,3.2078,3318.3,3317.8,0.38092983]
[1736531888211,3.2078,3318.3,3318.0,40.8]
[1736531888411,0.30142,3318.1,3318.0,40.8]
[1736531888618,0.30142,3318.1,3318.0,41.10143]
[1736531888619,3.2078,3318.1,3318.0,41.10143]
[1736531888813,3.2078,3318.5,3318.3,0.3014]
[1736531889113,3.2078,3318.5,3318.0,40.8]
[1736531889503,3.2078,3318.5,3318.1,0.30142]
[1736531889710,3.2078,3318.5,3318.0,40.8]
[1736531890106,3.2078,3318.1,3318.0,40.8]
[1736531890619,3.50922,3318.1,3318.0,40.8]
[1736531890911,0.30144,3317.9,3317.8,0.38092983]
[1736531891108,8.2078,3318.1,3316.4,0.30156]
[1736531891109,0.3015,3317.2,3316.4,0.30156]
[1736531891309,8.2078,3318.1,3315.7,3.2078]
[1736531891310,3.2078,3316.8,3315.7,3.2078]
[1736531891514,3.2078,3316.7,3315.7,3.2078]
[1736531891815,3.2078,3317.5,3317.4,0.30147]
[1736531892019,3.2078,3318.0,3317.8,0.30144]
[1736531892417,3.2078,3318.0,3317.9,0.30144]
[1736531892611,3.2078,3318.5,3318.3,0.30139]
[1736531892814,3.2078,3318.5,3317.3,3.96152]
[1736531893012,3.2078,3318.1,3317.4,0.30148]
[1736531893512,3.2078,3318.1,3318.0,0.30143]
[1736531893713,3.2078,3318.6,3318.5,0.30138]
[1736531894316,3.2078,3318.6,3318.3,0.3014]
[1736531894619,3.2078,3318.6,3317.2,3.96155]
[1736531894922,3.2078,3318.2,3318.1,0.30142]
[1736531895125,0.75306,3320.3,3318.1,0.30142]
[1736531895126,3.2078,3318.8,3318.7,0.30136]
[1736531895309,3.2078,3319.6,3319.5,0.30129]
[1736531895616,3.2078,3320.3,3318.9,3.2078]
[1736531895821,3.2078,3320.3,3320.2,0.30123]
[1736531896025,3.2078,3320.3,3320.2,40.8]
[1736531896721,3.50902,3320.3,3320.2,40.8]
[1736531897020,8.2078,3320.3,3319.5,0.30128]
[1736531897222,3.2078,3319.6,3319.5,0.30128]
[1736531897521,3.2078,3319.6,3319.5,41.10128]
[1736531898420,3.2078,3320.6,3319.5,40.8]
[1736531898820,3.2078,3320.6,3320.2,0.30122]
[1736531899011,3.2078,3320.6,3319.5,44.0078]
[1736531899012,3.2078,3320.6,3319.8,0.30126]
[1736531899219,3.2078,3320.2,3319.1,3.2078]
[1736531899426,3.2078,3319.8,3319.1,3.2078]
[1736531900123,3.2078,3319.8,3319.7,0.30127]
[1736531901125,3.2078,3319.8,3319.4,0.30129]
[1736531901318,3.2078,3319.8,3318.4,0.75348]
[1736531901525,3.2078,3319.3,3318.3,0.3014]
[1736531901717,3.2078,3319.3,3319.2,0.30132]
[1736531902119,3.2078,3319.7,3319.6,0.30128]
[1736531902315,3.2078,3319.7,3318.6,3.2078]
[1736531902627,3.2078,3319.3,3318.1,4.71489]
[1736531902825,3.2078,3318.7,3317.5,3.2078]
[1736531903013,3.22320285,3319.3,3317.5,3.2078]
[1736531903014,3.2078,3318.3,3317.5,3.2078]
[1736531903219,3.2078,3319.1,3317.9,3.2078]
[1736531903720,3.2078,3319.1,3319.0,0.30134]
[1736531904025,3.2078,3319.1,3318.9,0.30134]
[1736531904323,3.2078,3319.1,3319.0,0.30134]
[1736531904519,3.2078,3319.1,3318.2,0.75353]
[1736531904720,3.2078,3318.7,3318.3,40.8]
[1736531904921,0.30138,3318.5,3318.3,40.8]
[1736531905228,0.30141,3318.2,3317.3,3.2078]
[1736531905415,3.22320285,3318.6,3317.3,3.2078]
[1736531905416,3.2078,3318.0,3317.3,3.2078]
[1736531905620,3.2078,3318.0,3317.4,40.8]
[1736531905924,3.22320285,3318.6,3317.4,40.8]
[1736531906125,3.2078,3317.8,3317.4,40.8]
[1736531906325,3.2078,3317.8,3317.5,0.30147]
[1736531906524,3.2078,3317.8,3317.7,0.30145]
[1736531906717,3.2078,3318.5,3318.4,0.30139]
[1736531907021,0.30136,3318.8,3317.4,40.8]
[1736531907022,3.2078,3319.0,3317.9,0.75358]
[1736531907226,3.2078,3319.0,3318.9,0.30134]
[1736531907424,3.2078,3319.0,3318.3,0.3014]
[1736531907621,3.2078,3319.0,3318.7,0.30136]
[1736531907829,3.2078,3319.0,3317.8,3.2078]
[1736531908019,3.2078,3318.5,3318.4,0.30139]
[1736531908220,3.2078,3319.0,3318.9,0.30134]
[1736531908417,3.2078,3319.0,3317.8,0.75361]
[1736531908626,3.2078,3319.0,3318.6,0.30137]
[1736531908923,3.2078,3319.0,3318.7,40.8]
[1736531909122,3.50914,3319.0,3317.9,3.2078]
[1736531909437,0.8964,3319.2,3317.4,3.2078]
[1736531909438,3.2078,3318.2,3317.4,3.2078]
[1736531909925,3.2078,3318.2,3318.0,0.30142]
[1736531910126,3.2078,3318.2,3318.1,0.30142]
[1736531910336,3.2078,3318.7,3318.5,0.30137]
[1736531910524,3.2078,3318.7,3317.8,3.2078]
[1736531910718,3.2078,3318.7,3318.6,0.30137]
[1736531911924,3.2078,3318.7,3317.7,3.2078]
[1736531912126,3.2078,3318.7,3318.4,0.30138]
[1736531912326,3.2078,3318.7,3318.6,0.30137]
[1736531912630,3.2078,3318.7,3317.7,3.2078]
[1736531912820,3.2078,3318.7,3318.6,0.30137]
[1736531913225,3.2078,3318.7,3318.5,0.30137]
[1736531913425,3.2078,3318.7,3318.6,0.30137]
[1736531913626,3.2078,3319.3,3318.7,0.75342]
[1736531913834,3.2078,3320.4,3318.9,3.2078]
[1736531914324,0.30126,3319.9,3319.5,0.30128]
[1736531914529,0.30126,3319.9,3318.9,3.96116]
[1736531914530,3.2078,3319.6,3318.9,3.2078]
[1736531914727,3.2078,3319.6,3319.4,0.3013]
[1736531914927,3.2078,3319.6,3319.5,41.10129]
[1736531915136,3.2078,3319.6,3319.5,40.8]
[1736531915431,3.2078,3319.6,3319.5,41.10129]
[1736531916233,3.2078,3319.6,3319.5,40.8]
[1736531916433,11.43100285,3319.6,3318.7,0.30136]
[1736531916748,11.43100285,3319.6,3317.8,3.2078]
[1736531916749,3.2078,3318.8,3317.8,3.2078]
[1736531917034,3.22320285,3319.6,3317.8,3.2078]
[1736531917035,3.2078,3319.0,3317.8,3.2078]
[1736531917329,3.2078,3318.6,3317.8,3.2078]
[1736531917528,3.2078,3318.6,3318.5,0.30138]
[1736531918927,3.50917,3318.6,3318.5,40.8]
[1736531919126,8.2078,3318.6,3317.4,3.2078]
[1736531919330,3.2078,3317.9,3317.8,0.30144]
[1736531919630,3.2078,3318.3,3318.2,0.30141]
[1736531920729,3.2078,3318.3,3317.8,40.8]
[1736531921035,3.2078,3318.3,3318.1,0.30141]
[1736531921430,3.2078,3318.3,3318.2,0.30141]
[1736531921630,3.2078,3318.8,3318.7,0.30136]
[1736531921826,3.2078,3319.3,3319.2,0.30132]
[1736531922140,0.4482,3320.1,3320.0,0.30125]
[1736531922336,3.2078,3320.2,3320.1,0.30124]
[1736531923130,3.2078,3320.2,3319.3,0.75327]
[1736531923334,0.30124,3320.1,3319.8,0.30126]
[1736531923534,3.2078,3320.2,3318.6,3.2078]
[1736531923737,3.2078,3319.3,3318.5,0.75344]
[1736531924033,3.2078,3318.8,3317.7,3.2078]
[1736531924232,3.2078,3319.4,3318.1,3.2078]
[1736531924431,3.2078,3319.5,3318.2,0.75353]
[1736531924628,0.30136,3318.8,3318.2,0.30141]
[1736531924838,3.2078,3319.1,3318.3,40.8]
[1736531925041,3.2078,3319.1,3318.4,0.75348]
[1736531925246,3.2078,3319.1,3318.8,0.30135]
[1736531925247,3.50913,3319.1,3318.8,0.30135]
[1736531925429,3.2078,3319.5,3319.4,0.3013]
[1736531925629,0.4738,3319.6,3319.5,0.30129]
[1736531925937,0.4738,3319.6,3319.4,0.30129]
[1736531926327,0.4738,3319.6,3319.5,0.30129]
[1736531926531,3.2078,3319.9,3319.8,0.30126]
[1736531926935,3.2078,3320.4,3320.3,0.30122]
[1736531927332,8.2078,3320.4,3319.5,3.2078]
[1736531927533,3.2078,3320.0,3319.8,0.30126]
[1736531927734,3.2078,3320.0,3318.8,0.75339]
[1736531927931,0.75299,3320.6,3318.8,0.75339]
[1736531927932,3.2078,3319.5,3319.4,0.3013]
[1736531928338,3.2078,3319.5,3319.2,0.30132]
[1736531928543,3.2078,3319.5,3318.7,3.2078]
[1736531928842,3.2078,3319.5,3318.5,3.2078]
[1736531929042,0.30135,3318.9,3318.7,0.30136]
[1736531929438,0.30135,3318.9,3318.2,0.75352]
[1736531929439,3.2078,3319.1,3318.3,0.3014]
[1736531929648,3.663,3319.5,3318.1,3.2078]
[1736531929943,3.663,3319.5,3318.6,0.75342]
[1736531930144,0.30131,3319.3,3319.1,0.30132]
[1736531930341,0.4552,3319.5,3318.6,3.2078]
[1736531930641,3.2078,3319.9,3319.8,0.30126]
[1736531930834,3.2078,3320.3,3319.1,3.2078]
[1736531931041,3.2078,3320.3,3320.2,0.30123]
[1736531931242,3.50902,3320.3,3319.3,0.75328]
[1736531931547,3.2078,3319.9,3319.5,0.30128]
[1736531931736,0.30124,3320.1,3319.8,0.30126]
[1736531931942,0.30125,3320.0,3319.8,0.30126]
[1736531932244,3.2078,3319.9,3318.8,3.2078]
[1736531932441,3.2078,3319.5,3318.8,3.2078]
[1736531932939,0.30132,3319.3,3319.0,0.30133]
[1736531933342,3.2078,3319.1,3318.1,0.75353]
[1736531933644,0.30134,3319.0,3318.1,0.75353]
[1736531933841,0.3014,3318.3,3318.0,0.30142]
[1736531934043,3.2078,3318.3,3317.5,3.2078]
[1736531934245,0.30144,3317.9,3317.7,0.30145]
[1736531934443,3.2078,3317.9,3316.6,3.2078]
[1736531934648,3.2078,3317.2,3316.1,4.71578]
[1736531934844,0.9009,3318.2,3316.1,4.71578]
[1736531934845,0.30146,3317.7,3317.4,0.30147]
[1736531935049,3.2078,3317.8,3317.0,0.7538]
[1736531935250,3.2078,3317.8,3316.7,41.55385]
[1736531935448,3.2078,3317.8,3317.4,0.30148]
[1736531935648,3.2078,3317.8,3316.7,40.8]
[1736531936050,0.9009,3318.2,3316.9,3.2078]
[1736531936342,3.2078,3318.7,3318.2,0.3014]
[1736531936545,3.2078,3318.3,3317.4,0.7537]
[1736531936745,0.30143,3318.0,3317.7,0.30145]
[1736531936945,3.2078,3317.9,3317.2,0.75375]
[1736531937143,0.30138,3318.5,3317.4,0.75369]
[1736531937349,0.30138,3318.5,3318.3,0.3014]
[1736531937651,0.30138,3318.5,3318.2,0.3014]
[1736531937846,0.3014,3318.3,3318.0,0.30142]
[1736531938044,3.2078,3318.3,3316.9,3.2078]
[1736531938347,0.30139,3318.5,3317.5,1.05515]
[1736531938548,3.2078,3318.2,3318.0,0.30142]
[1736531938944,3.50921,3318.2,3317.9,0.30143]
[1736531939345,3.2078,3318.2,3317.4,0.75371]
[1736531939545,3.2078,3318.6,3317.3,3.2078]
[1736531939753,3.2078,3318.2,3317.2,0.75374]
[1736531939945,3.2078,3318.2,3317.0,0.75379]
[1736531940251,3.2078,3317.8,3317.7,0.30145]
[1736531941145,3.2078,3317.8,3316.9,3.2078]
[1736531941347,11.69768275,3318.9,3317.3,3.2078]
[1736531941548,11.69768275,3318.9,3315.6,2.219]
[1736531941549,11.69768275,3318.9,3318.5,3.2078]
[1736531941855,7.72452275,3318.9,3318.8,41.10135]
[1736531942055,6.85138275,3318.9,3318.8,41.10135]
[1736531942556,0.30127,3319.8,3319.6,0.30128]
[1736531942758,0.30126,3319.8,3319.7,0.30127]
[1736531942953,0.75312,3320.0,3319.3,0.3013]
[1736531943142,0.75323,3319.5,3318.8,41.10135]
[1736531943448,0.30133,3319.1,3318.9,0.30134]
[1736531943647,3.2078,3319.5,3318.8,40.8]
[1736531944056,0.30132,3319.3,3319.0,0.30133]
[1736531944246,0.30137,3318.7,3318.5,3.2078]
[1736531944556,3.2078,3319.3,3317.3,0.30148]
[1736531944557,0.30146,3317.7,3317.3,0.30148]
[1736531944757,0.30147,3317.6,3317.3,40.8]
[1736531945053,3.2078,3317.7,3316.7,0.75386]
[1736531945351,3.2078,3317.7,3316.8,40.8]
[1736531945555,3.50929,3317.3,3317.0,0.30151]
[1736531945854,0.30151,3317.2,3316.9,0.30152]
[1736531946049,0.4671,3318.0,3316.8,40.8]
[1736531946250,0.4671,3318.0,3317.0,3.2078]
[1736531946555,3.2078,3317.8,3317.0,3.2078]
[1736531946755,3.2078,3317.8,3317.0,0.30151]
[1736531946954,0.30152,3317.0,3316.8,40.8]
[1736531947258,0.3015,3317.2,3316.9,0.30153]
[1736531947653,0.75362,3317.8,3316.9,0.30153]
[1736531947654,0.30146,3317.6,3316.9,0.30153]
[1736531947848,5.8442,3317.9,3316.8,40.8]
[1736531948056,3.2078,3317.5,3316.8,40.8]
[1736531948459,0.30148,3317.4,3316.8,40.8]
[1736531948663,3.50928,3317.5,3316.8,40.8]
[1736531948959,3.2078,3317.5,3317.2,0.30149]
[1736531949155,3.2078,3317.5,3316.8,40.8]
[1736531949352,0.30145,3317.8,3316.9,0.75382]
[1736531949555,3.5436018,3319.0,3317.5,3.2078]
[1736531949758,56.957,3325.8,3317.5,3.2078]
[1736531949759,3.2078,3319.3,3318.2,0.75351]
[1736531949953,0.30134,3319.0,3318.7,0.30136]
[1736531950160,3.2078,3318.8,3317.5,0.75367]
[1736531950356,3.2078,3318.4,3317.5,0.75367]
[1736531950554,3.2078,3319.0,3318.1,0.75354]
[1736531950852,3.50914,3319.0,3318.7,0.30136]
[1736531951051,3.2078,3319.0,3318.7,0.30136]
[1736531951256,3.50914,3319.0,3318.7,0.30136]
[1736531951463,3.2078,3319.2,3318.4,0.75348]
[1736531951761,3.50912,3319.2,3318.4,0.75348]
[1736531951960,3.50912,3319.2,3319.0,0.30133]
[1736531951961,3.2078,3319.2,3319.0,0.30133]
[1736531952164,3.2078,3319.2,3319.1,0.30133]
[1736531952660,3.2078,3319.2,3318.5,0.75346]
[1736531952661,4.1872,3319.9,3318.8,3.2078]
[1736531952856,0.3013,3319.4,3319.0,0.30133]
[1736531953159,3.2078,3319.1,3318.2,40.8]
[1736531953657,3.2078,3319.1,3318.2,41.55352]
[1736531953959,3.2078,3319.1,3318.8,0.30135]
[1736531954256,3.2078,3319.1,3318.2,40.8]
[1736531954257,3.50913,3319.1,3318.7,0.30136]
[1736531954961,3.2078,3319.1,3318.2,40.8]
[1736531955162,0.75326,3319.4,3317.9,0.30143]
[1736531955163,0.3014,3318.4,3317.9,0.30143]
[1736531955356,3.2078,3318.0,3317.1,3.2078]
[1736531955553,0.30145,3317.8,3317.3,0.30149]
[1736531955872,3.2078,3317.6,3316.6,3.2078]
[1736531956166,3.2078,3317.6,3315.2,3.22320285]
[1736531956167,2.2078,3317.5,3316.3,0.75395]
[1736531956363,2.2078,3317.5,3316.7,40.8]
[1736531956664,3.2078,3317.0,3316.7,40.8]
[1736531956861,0.30154,3316.8,3316.7,40.8]
[1736531957763,3.2078,3317.0,3316.2,0.30159]
[1736531957959,0.30162,3315.9,3315.5,0.30165]
[1736531958260,3.2078,3315.9,3315.5,40.8]
[1736531958457,0.30164,3315.6,3315.5,40.8]
[1736531958668,3.96186,3315.9,3314.7,3.2078]
[1736531958966,3.2078,3315.2,3314.0,3.2078]
[1736531959161,3.2078,3315.2,3314.8,40.8]
[1736531959466,3.0634,3315.2,3315.1,0.30169]
[1736531959767,3.0634,3315.2,3314.4,3.96218]
[1736531959768,3.0634,3315.2,3314.4,3.2078]
[1736531959961,0.30172,3314.8,3314.4,3.2078]
[1736531960161,3.0634,3315.2,3314.4,3.2078]
[1736531960359,3.0634,3315.2,3314.4,3.50955]
[1736531960657,0.30172,3314.9,3314.4,3.50955]
[1736531961057,0.30172,3314.9,3314.5,0.30174]
[1736531961259,0.30172,3314.9,3314.4,3.2078]
[1736531961459,0.30172,3314.8,3314.4,3.50955]
[1736531961665,3.0634,3315.2,3314.4,3.2078]
[1736531961864,3.2078,3314.8,3313.5,3.2078]
[1736531962164,0.30174,3314.6,3314.2,0.30177]
[1736531962366,0.30175,3314.5,3314.1,0.30178]
[1736531962564,3.2078,3314.8,3313.6,0.75457]
[1736531962762,3.2078,3315.2,3314.3,3.2078]
[1736531963064,3.2078,3315.2,3315.0,0.3017]
[1736531963263,3.2078,3315.2,3314.4,0.75439]
[1736531963458,2.156,3315.8,3314.7,3.2078]
[1736531963652,3.2078,3315.9,3314.7,3.2078]
[1736531963957,3.2078,3316.3,3315.1,3.2078]
[1736531964164,0.30155,3316.7,3316.3,0.30158]
[1736531964466,3.2078,3317.2,3315.9,3.2078]
[1736531964664,3.2078,3316.8,3315.9,3.2078]
[1736531964862,3.2078,3316.3,3316.0,40.8]
[1736531965055,0.75379,3317.1,3316.0,40.8]
[1736531965056,0.3016,3316.1,3316.0,40.8]
[1736531965257,3.2078,3316.2,3314.7,3.22320285]
[1736531965258,0.30161,3316.0,3315.5,0.30165]
[1736531965459,3.22320285,3316.7,3314.6,0.4898]
[1736531965460,3.2078,3316.6,3315.7,3.2078]
[1736531965662,3.2078,3316.6,3315.3,3.2078]
[1736531965963,0.30157,3316.4,3315.9,0.30162]
[1736531966155,0.30157,3316.5,3316.0,0.30161]
[1736531966356,3.2078,3316.6,3315.8,40.8]
[1736531966563,0.75382,3317.0,3315.8,40.8]
[1736531966564,3.50939,3316.2,3315.8,40.8]
[1736531966761,0.3016,3316.1,3315.7,0.30163]
[1736531967454,0.3016,3316.1,3315.0,3.2078]
[1736531967455,3.2078,3316.2,3315.0,3.2078]